[Event "*** SCC Grand Prix: Titled Tuesday Blitz"]
[Site "Chess.com"]
[Date "2020.08.11"]
[Round "6"]
[White "MVM2008"]
[Black "beatnoguera"]
[Result "1-0"]
[WhiteElo "2198"]
[BlackElo "1812"]
[TimeControl "180+1"]
[EndTime "11:02:46 PDT"]
[Termination "MVM2008 won by checkmate"]

1. e4 {[%clk 0:03:00.9]} 1... e5 {[%clk 0:02:59.3]} 2. Nf3 {[%clk 0:03:00]} 2...
Nc6 {[%clk 0:02:58.3]} 3. Bc4 {[%clk 0:02:59.9]} 3... Bc5 {[%clk 0:02:57]} 4. b4
{[%clk 0:02:59.9]} 4... Bxb4 {[%clk 0:02:53.6]} 5. c3 {[%clk 0:02:59.3]} 5...
Ba5 {[%clk 0:02:53.5]} 6. d4 {[%clk 0:02:59.5]} 6... exd4 {[%clk 0:02:52.7]} 7.
O-O {[%clk 0:02:59.5]} 7... d6 {[%clk 0:02:52.2]} 8. cxd4 {[%clk 0:02:34.9]}
8... Bg4 {[%clk 0:02:47.4]} 9. Qb3 {[%clk 0:01:56]} 9... Bb6 {[%clk 0:02:29.5]}
10. Bxf7+ {[%clk 0:01:36.7]} 10... Kf8 {[%clk 0:02:29.1]} 11. Bxg8 {[%clk
0:01:32.8]} 11... Rxg8 {[%clk 0:02:28.7]} 12. Ng5 {[%clk 0:01:32.5]} 12... Qd7
{[%clk 0:02:19.7]} 13. Nxh7+ {[%clk 0:01:29]} 13... Ke8 {[%clk 0:02:19.5]} 14.
Qxg8+ {[%clk 0:01:28.5]} 14... Ke7 {[%clk 0:02:16.7]} 15. Bg5# {[%clk
0:01:28.2]} 1-0

[Event "*** SCC Grand Prix: Titled Tuesday Blitz"]
[Site "Chess.com"]
[Date "2020.08.11"]
[Round "6"]
[White "Sekar24"]
[Black "Politov_Pavel"]
[Result "0-1"]
[WhiteElo "2503"]
[BlackElo "2112"]
[TimeControl "180+1"]
[EndTime "11:03:25 PDT"]
[Termination "Politov_Pavel won by resignation"]

1. e4 {[%clk 0:02:57.5]} 1... c5 {[%clk 0:02:59.6]} 2. Nf3 {[%clk 0:02:57.5]}
2... e6 {[%clk 0:02:59.8]} 3. d4 {[%clk 0:02:57.6]} 3... cxd4 {[%clk 0:03:00.7]}
4. Nxd4 {[%clk 0:02:58.3]} 4... Nf6 {[%clk 0:03:01.2]} 5. Nc3 {[%clk 0:02:57.6]}
5... Bb4 {[%clk 0:03:01.7]} 6. e5 {[%clk 0:02:56.2]} 6... Ne4 {[%clk 0:02:53.8]}
7. Qg4 {[%clk 0:02:38.9]} 7... Nxc3 {[%clk 0:02:53.7]} 8. a3 {[%clk 0:02:36.9]}
8... Bf8 {[%clk 0:02:43.3]} 9. bxc3 {[%clk 0:02:35.9]} 9... h5 {[%clk
0:02:43.5]} 10. Qg3 {[%clk 0:02:32.5]} 10... h4 {[%clk 0:02:42.7]} 11. Qf4
{[%clk 0:02:23.7]} 11... Qa5 {[%clk 0:02:41.8]} 12. Bd2 {[%clk 0:02:22.3]} 12...
Nc6 {[%clk 0:02:40.1]} 13. Nf3 {[%clk 0:02:19.3]} 13... Qc5 {[%clk 0:02:33.5]}
14. c4 {[%clk 0:02:00]} 14... d6 {[%clk 0:02:28.8]} 15. exd6 {[%clk 0:01:48.2]}
15... Bxd6 {[%clk 0:02:29.7]} 16. Qg4 {[%clk 0:01:48.1]} 16... Kf8 {[%clk
0:02:10.4]} 17. Bd3 {[%clk 0:01:44.4]} 17... h3 {[%clk 0:02:07.1]} 18. g3 {[%clk
0:01:29.2]} 18... Ne5 {[%clk 0:02:06.9]} 19. Nxe5 {[%clk 0:01:26.9]} 19... Qxe5+
{[%clk 0:02:06.4]} 0-1

[Event "*** SCC Grand Prix: Titled Tuesday Blitz"]
[Site "Chess.com"]
[Date "2020.08.11"]
[Round "6"]
[White "Vsevolod_Ovchinnikov"]
[Black "FMOlexandrProhorov"]
[Result "1-0"]
[WhiteElo "2447"]
[BlackElo "2136"]
[TimeControl "180+1"]
[EndTime "11:03:52 PDT"]
[Termination "Vsevolod_Ovchinnikov won by resignation"]

1. d4 {[%clk 0:03:00.9]} 1... g6 {[%clk 0:02:56.9]} 2. c4 {[%clk 0:03:00.7]}
2... Bg7 {[%clk 0:02:57.8]} 3. Nf3 {[%clk 0:03:01.3]} 3... c5 {[%clk 0:02:57.8]}
4. d5 {[%clk 0:03:01.5]} 4... d6 {[%clk 0:02:54.5]} 5. e4 {[%clk 0:03:01.2]}
5... e6 {[%clk 0:02:51.4]} 6. Be2 {[%clk 0:02:58.9]} 6... Ne7 {[%clk 0:02:50.2]}
7. O-O {[%clk 0:02:57.6]} 7... O-O {[%clk 0:02:49.9]} 8. Nc3 {[%clk 0:02:46.4]}
8... exd5 {[%clk 0:02:49.2]} 9. cxd5 {[%clk 0:02:45.9]} 9... a6 {[%clk 0:02:44]}
10. a4 {[%clk 0:02:45.4]} 10... f5 {[%clk 0:02:22.6]} 11. Ng5 {[%clk 0:02:26]}
11... fxe4 {[%clk 0:02:00.2]} 12. Ncxe4 {[%clk 0:02:14.3]} 12... Nf5 {[%clk
0:01:58.5]} 13. Ne6 {[%clk 0:01:55]} 13... Bxe6 {[%clk 0:01:56.6]} 14. dxe6
{[%clk 0:01:55.9]} 14... Nd4 {[%clk 0:01:44.3]} 15. Bg5 {[%clk 0:01:48.1]} 15...
Qe8 {[%clk 0:01:29]} 16. e7 {[%clk 0:01:45.6]} 16... Rf5 {[%clk 0:01:14.8]} 17.
Nxd6 {[%clk 0:01:41.1]} 1-0

[Event "*** SCC Grand Prix: Titled Tuesday Blitz"]
[Site "Chess.com"]
[Date "2020.08.11"]
[Round "6"]
[White "Irishchessman16"]
[Black "LimeInTheCoconut"]
[Result "1-0"]
[WhiteElo "2374"]
[BlackElo "2458"]
[TimeControl "180+1"]
[EndTime "11:04:05 PDT"]
[Termination "Irishchessman16 won by resignation"]

1. e4 {[%clk 0:03:00.9]} 1... c6 {[%clk 0:02:59.7]} 2. d4 {[%clk 0:02:59]} 2...
d5 {[%clk 0:02:58.4]} 3. e5 {[%clk 0:02:58.8]} 3... Bf5 {[%clk 0:02:58]} 4. h4
{[%clk 0:02:57.6]} 4... h5 {[%clk 0:02:57.9]} 5. c4 {[%clk 0:02:57.1]} 5... e6
{[%clk 0:02:58]} 6. Nc3 {[%clk 0:02:55.2]} 6... Ne7 {[%clk 0:02:58.7]} 7. Nge2
{[%clk 0:02:55.5]} 7... Nd7 {[%clk 0:02:58.7]} 8. Ng3 {[%clk 0:02:55.7]} 8...
Bg6 {[%clk 0:02:57.9]} 9. Bg5 {[%clk 0:02:56.3]} 9... Qb6 {[%clk 0:02:57.4]} 10.
Rc1 {[%clk 0:02:53.7]} 10... dxc4 {[%clk 0:02:57.2]} 11. Bxc4 {[%clk 0:02:53.1]}
11... Qb4 {[%clk 0:02:57.7]} 12. Qe2 {[%clk 0:02:31.2]} 12... Nb6 {[%clk
0:02:50.7]} 13. Bb3 {[%clk 0:02:28.2]} 13... Qxd4 {[%clk 0:02:47.7]} 14. O-O
{[%clk 0:02:28.1]} 14... Ned5 {[%clk 0:02:42.3]} 15. Rfd1 {[%clk 0:02:23.6]}
15... Qg4 {[%clk 0:02:42]} 16. Qe1 {[%clk 0:02:09.9]} 16... Nxc3 {[%clk
0:02:26.2]} 17. bxc3 {[%clk 0:02:09]} 17... Bc5 {[%clk 0:02:22.3]} 18. Kh2
{[%clk 0:02:08.3]} 18... Be7 {[%clk 0:01:06.2]} 19. Bxe7 {[%clk 0:01:43.4]}
19... Kxe7 {[%clk 0:01:02.4]} 20. Rd4 {[%clk 0:01:43.4]} 1-0

[Event "*** SCC Grand Prix: Titled Tuesday Blitz"]
[Site "Chess.com"]
[Date "2020.08.11"]
[Round "6"]
[White "ChessicallyInclined"]
[Black "SHIVACalypso"]
[Result "1-0"]
[WhiteElo "2493"]
[BlackElo "2305"]
[TimeControl "180+1"]
[EndTime "11:04:11 PDT"]
[Termination "ChessicallyInclined won by resignation"]

1. d4 {[%clk 0:02:55.9]} 1... e6 {[%clk 0:03:00.9]} 2. c4 {[%clk 0:02:55.7]}
2... Nf6 {[%clk 0:03:00.8]} 3. Nc3 {[%clk 0:02:56]} 3... Bb4 {[%clk 0:03:00.1]}
4. e3 {[%clk 0:02:56]} 4... O-O {[%clk 0:02:59.4]} 5. Ne2 {[%clk 0:02:56.5]}
5... c6 {[%clk 0:02:58.6]} 6. a3 {[%clk 0:02:56.7]} 6... Ba5 {[%clk 0:02:58.6]}
7. c5 {[%clk 0:02:57.2]} 7... d6 {[%clk 0:02:53.8]} 8. b4 {[%clk 0:02:55.2]}
8... Bc7 {[%clk 0:02:53.4]} 9. cxd6 {[%clk 0:02:55.5]} 9... Bxd6 {[%clk
0:02:52]} 10. g3 {[%clk 0:02:55.2]} 10... Nbd7 {[%clk 0:02:50.7]} 11. Bg2 {[%clk
0:02:55.5]} 11... e5 {[%clk 0:02:51.1]} 12. O-O {[%clk 0:02:55.4]} 12... exd4
{[%clk 0:02:48.3]} 13. Nxd4 {[%clk 0:02:55.1]} 13... Ne5 {[%clk 0:02:46.9]} 14.
Qc2 {[%clk 0:02:54.7]} 14... Qc7 {[%clk 0:02:31.6]} 15. Nf5 {[%clk 0:02:50]}
15... Bxf5 {[%clk 0:02:24.8]} 16. Qxf5 {[%clk 0:02:50.9]} 16... Rad8 {[%clk
0:02:19.2]} 17. Rb1 {[%clk 0:02:36.5]} 17... Nc4 {[%clk 0:02:10.2]} 18. a4
{[%clk 0:02:27]} 18... Be5 {[%clk 0:02:06.7]} 19. Qc2 {[%clk 0:02:23.6]} 19...
Nb6 {[%clk 0:01:59.5]} 20. e4 {[%clk 0:02:17.2]} 20... Bxc3 {[%clk 0:01:53.5]}
21. Qxc3 {[%clk 0:02:18.1]} 21... Nxa4 {[%clk 0:01:53.2]} 22. Qb3 {[%clk
0:02:10.8]} 22... b5 {[%clk 0:01:52.7]} 23. Bf4 {[%clk 0:02:00.1]} 23... Qd7
{[%clk 0:01:52.2]} 24. Rbc1 {[%clk 0:01:52.3]} 24... Rfe8 {[%clk 0:01:50]} 25.
Rfd1 {[%clk 0:01:45.9]} 25... Qc8 {[%clk 0:01:38.6]} 26. Rxd8 {[%clk 0:01:39.8]}
26... Rxd8 {[%clk 0:01:39.5]} 27. e5 {[%clk 0:01:39.9]} 27... Nd7 {[%clk
0:01:33.9]} 28. Bxc6 {[%clk 0:01:37.4]} 28... Ndb6 {[%clk 0:01:26.2]} 29. Bxb5
{[%clk 0:01:33.1]} 29... Qe6 {[%clk 0:01:23.4]} 30. Bxa4 {[%clk 0:01:32.3]} 1-0

[Event "*** SCC Grand Prix: Titled Tuesday Blitz"]
[Site "Chess.com"]
[Date "2020.08.11"]
[Round "6"]
[White "Nikithebest"]
[Black "Mbneu"]
[Result "1-0"]
[WhiteElo "2417"]
[BlackElo "2228"]
[TimeControl "180+1"]
[EndTime "11:04:11 PDT"]
[Termination "Nikithebest won by resignation"]

1. e4 {[%clk 0:03:00.9]} 1... c5 {[%clk 0:02:59.8]} 2. Nf3 {[%clk 0:03:00.5]}
2... Nf6 {[%clk 0:03:00.4]} 3. e5 {[%clk 0:02:57.9]} 3... Nd5 {[%clk 0:03:00.2]}
4. Nc3 {[%clk 0:02:58.4]} 4... Nxc3 {[%clk 0:03:00.2]} 5. dxc3 {[%clk
0:02:57.6]} 5... Nc6 {[%clk 0:03:00.8]} 6. Bc4 {[%clk 0:02:52]} 6... e6 {[%clk
0:02:59.3]} 7. Bf4 {[%clk 0:02:50.2]} 7... Qc7 {[%clk 0:02:58]} 8. O-O {[%clk
0:02:48.8]} 8... h6 {[%clk 0:02:48.4]} 9. h4 {[%clk 0:02:44.5]} 9... b6 {[%clk
0:02:47.4]} 10. a4 {[%clk 0:02:43.1]} 10... Bb7 {[%clk 0:02:45.6]} 11. Qe2
{[%clk 0:02:34.9]} 11... O-O-O {[%clk 0:02:41.9]} 12. Rfd1 {[%clk 0:02:24]}
12... d5 {[%clk 0:02:28.9]} 13. exd6 {[%clk 0:02:17.1]} 13... Bxd6 {[%clk
0:02:28.3]} 14. Bxe6+ {[%clk 0:01:54.5]} 14... Kb8 {[%clk 0:02:02.7]} 15. Bxd6
{[%clk 0:01:44.5]} 15... Rxd6 {[%clk 0:02:02.3]} 16. Rxd6 {[%clk 0:01:40.8]}
16... Qxd6 {[%clk 0:02:02.2]} 17. Bxf7 {[%clk 0:01:41.2]} 17... Rf8 {[%clk
0:01:55.9]} 18. Rd1 {[%clk 0:01:29.8]} 18... Qf4 {[%clk 0:01:46.5]} 19. Bd5
{[%clk 0:01:30.1]} 19... Nd4 {[%clk 0:01:26.9]} 20. cxd4 {[%clk 0:01:24.4]}
20... Bxd5 {[%clk 0:01:24.9]} 21. Qe5+ {[%clk 0:01:24.5]} 21... Qxe5 {[%clk
0:01:22.9]} 22. Nxe5 {[%clk 0:01:25.4]} 22... cxd4 {[%clk 0:01:14.7]} 23. Nd7+
{[%clk 0:01:25.1]} 1-0

[Event "*** SCC Grand Prix: Titled Tuesday Blitz"]
[Site "Chess.com"]
[Date "2020.08.11"]
[Round "6"]
[White "martynkovaelena"]
[Black "dpopadic"]
[Result "0-1"]
[WhiteElo "2239"]
[BlackElo "2427"]
[TimeControl "180+1"]
[EndTime "11:04:13 PDT"]
[Termination "dpopadic won by resignation"]

1. Nf3 {[%clk 0:03:00.9]} 1... Nf6 {[%clk 0:02:59.7]} 2. g3 {[%clk 0:02:59.7]}
2... g6 {[%clk 0:02:59.5]} 3. Bg2 {[%clk 0:03:00]} 3... Bg7 {[%clk 0:03:00.3]}
4. O-O {[%clk 0:03:00.6]} 4... O-O {[%clk 0:03:00.1]} 5. c4 {[%clk 0:02:59.9]}
5... d6 {[%clk 0:03:00.1]} 6. d4 {[%clk 0:02:58.8]} 6... Nbd7 {[%clk 0:02:59.3]}
7. Nc3 {[%clk 0:02:57.7]} 7... e5 {[%clk 0:02:59.2]} 8. e4 {[%clk 0:02:58.3]}
8... exd4 {[%clk 0:02:58.8]} 9. Nxd4 {[%clk 0:02:58.3]} 9... Re8 {[%clk
0:02:59.4]} 10. h3 {[%clk 0:02:58.8]} 10... a6 {[%clk 0:02:59.5]} 11. Be3 {[%clk
0:02:54.9]} 11... Rb8 {[%clk 0:02:59]} 12. Qc2 {[%clk 0:02:52.6]} 12... c5
{[%clk 0:02:58.7]} 13. Nf3 {[%clk 0:02:45.4]} 13... b5 {[%clk 0:02:48.6]} 14.
cxb5 {[%clk 0:02:44.2]} 14... axb5 {[%clk 0:02:48.5]} 15. Nd2 {[%clk 0:02:21.2]}
15... b4 {[%clk 0:02:34]} 16. Ne2 {[%clk 0:02:10.6]} 16... Ba6 {[%clk
0:02:30.7]} 17. Nc4 {[%clk 0:02:09.8]} 17... Nb6 {[%clk 0:02:13]} 18. Nxb6
{[%clk 0:02:04.4]} 18... Qxb6 {[%clk 0:02:12.4]} 19. Rfd1 {[%clk 0:02:00.8]}
19... Bxe2 {[%clk 0:02:02.2]} 20. Qxe2 {[%clk 0:01:59.9]} 20... Nxe4 {[%clk
0:01:57.2]} 21. Qc4 {[%clk 0:01:56.8]} 21... Nxg3 {[%clk 0:01:32.4]} 22. Bxc5
{[%clk 0:01:42.2]} 22... Qxc5 {[%clk 0:01:08.5]} 23. Qxc5 {[%clk 0:01:39.9]}
23... Ne2+ {[%clk 0:01:07.5]} 24. Kf1 {[%clk 0:01:38.6]} 24... dxc5 {[%clk
0:01:07.5]} 0-1

[Event "*** SCC Grand Prix: Titled Tuesday Blitz"]
[Site "Chess.com"]
[Date "2020.08.11"]
[Round "6"]
[White "JRenatoMaranhao"]
[Black "Alopekos"]
[Result "1-0"]
[WhiteElo "2066"]
[BlackElo "2270"]
[TimeControl "180+1"]
[EndTime "11:04:36 PDT"]
[Termination "JRenatoMaranhao won by checkmate"]

1. e4 {[%clk 0:03:00.9]} 1... e6 {[%clk 0:02:59.9]} 2. d4 {[%clk 0:03:00.4]}
2... d5 {[%clk 0:02:59.7]} 3. Nc3 {[%clk 0:03:00.6]} 3... Nf6 {[%clk 0:02:59.1]}
4. e5 {[%clk 0:03:00.5]} 4... Nfd7 {[%clk 0:02:56.2]} 5. f4 {[%clk 0:03:00.8]}
5... c5 {[%clk 0:02:57.1]} 6. Nf3 {[%clk 0:03:00.9]} 6... Nc6 {[%clk 0:02:57.5]}
7. Be3 {[%clk 0:03:01]} 7... Be7 {[%clk 0:02:57.9]} 8. Qd2 {[%clk 0:02:59.5]}
8... a6 {[%clk 0:02:57.9]} 9. dxc5 {[%clk 0:02:58.3]} 9... Nxc5 {[%clk
0:02:56.7]} 10. O-O-O {[%clk 0:02:58]} 10... Qa5 {[%clk 0:02:56]} 11. f5 {[%clk
0:02:51]} 11... b5 {[%clk 0:02:33.8]} 12. fxe6 {[%clk 0:02:13.2]} 12... fxe6
{[%clk 0:02:25.7]} 13. Kb1 {[%clk 0:01:40]} 13... b4 {[%clk 0:02:23.4]} 14. Nxd5
{[%clk 0:01:26.4]} 14... exd5 {[%clk 0:01:55]} 15. Qxd5 {[%clk 0:01:27.3]} 15...
Bb7 {[%clk 0:01:34.1]} 16. Bc4 {[%clk 0:01:25]} 16... Rf8 {[%clk 0:00:45.5]} 17.
Bxc5 {[%clk 0:01:24.4]} 17... Qxc5 {[%clk 0:00:42]} 18. Qd7# {[%clk 0:01:23.9]}
1-0

[Event "*** SCC Grand Prix: Titled Tuesday Blitz"]
[Site "Chess.com"]
[Date "2020.08.11"]
[Round "6"]
[White "TimKett"]
[Black "Ole83"]
[Result "0-1"]
[WhiteElo "2196"]
[BlackElo "2353"]
[TimeControl "180+1"]
[EndTime "11:04:50 PDT"]
[Termination "Ole83 won by resignation"]

1. e4 {[%clk 0:03:00.9]} 1... d6 {[%clk 0:02:58.2]} 2. d4 {[%clk 0:03:00.2]}
2... Nf6 {[%clk 0:02:58.3]} 3. Nc3 {[%clk 0:02:59.8]} 3... g6 {[%clk 0:02:58.4]}
4. Be3 {[%clk 0:02:59.7]} 4... c6 {[%clk 0:02:57.4]} 5. Qd2 {[%clk 0:02:59.7]}
5... Nbd7 {[%clk 0:02:56.9]} 6. O-O-O {[%clk 0:02:59.4]} 6... b5 {[%clk
0:02:55.8]} 7. Bd3 {[%clk 0:02:58.5]} 7... a5 {[%clk 0:02:53.6]} 8. Kb1 {[%clk
0:02:57.8]} 8... b4 {[%clk 0:02:48.2]} 9. Nce2 {[%clk 0:02:57.2]} 9... Bb7
{[%clk 0:02:45.9]} 10. f4 {[%clk 0:02:56.4]} 10... Bg7 {[%clk 0:02:36.5]} 11. e5
{[%clk 0:02:53.6]} 11... Nd5 {[%clk 0:02:35.8]} 12. Nf3 {[%clk 0:02:45.4]} 12...
N7b6 {[%clk 0:02:28.8]} 13. h4 {[%clk 0:02:42.8]} 13... h5 {[%clk 0:02:19.4]}
14. Ng5 {[%clk 0:02:42]} 14... Qc7 {[%clk 0:01:51.9]} 15. Bxg6 {[%clk
0:02:26.2]} 15... fxg6 {[%clk 0:01:42.5]} 16. Ne6 {[%clk 0:02:26.2]} 16... Qc8
{[%clk 0:01:42.4]} 17. Nxg7+ {[%clk 0:02:24.7]} 17... Kf7 {[%clk 0:01:41.2]} 18.
f5 {[%clk 0:02:16.8]} 18... Kxg7 {[%clk 0:01:41.1]} 19. fxg6 {[%clk 0:02:08.6]}
19... Nc4 {[%clk 0:01:36.7]} 20. Qd3 {[%clk 0:01:53.3]} 20... Ncxe3 {[%clk
0:01:36.6]} 21. Ng3 {[%clk 0:01:50.6]} 21... Qg4 {[%clk 0:01:25.1]} 22. Ne4
{[%clk 0:01:42.8]} 22... Nxd1 {[%clk 0:01:12]} 23. Rxd1 {[%clk 0:01:42.6]} 23...
Rhf8 {[%clk 0:01:07.6]} 24. exd6 {[%clk 0:01:41.8]} 24... Ba6 {[%clk 0:01:05]}
25. dxe7 {[%clk 0:01:15.7]} 25... Bxd3 {[%clk 0:01:02.3]} 26. exf8=Q+ {[%clk
0:01:15.4]} 26... Rxf8 {[%clk 0:01:01.7]} 0-1

[Event "*** SCC Grand Prix: Titled Tuesday Blitz"]
[Site "Chess.com"]
[Date "2020.08.11"]
[Round "6"]
[White "Quiet_Desperation"]
[Black "StellarChessPro"]
[Result "1-0"]
[WhiteElo "2276"]
[BlackElo "2517"]
[TimeControl "180+1"]
[EndTime "11:04:54 PDT"]
[Termination "Quiet_Desperation won by resignation"]

1. e4 {[%clk 0:03:00.9]} 1... g6 {[%clk 0:03:00.3]} 2. d4 {[%clk 0:03:00.5]}
2... Bg7 {[%clk 0:03:00.8]} 3. Nc3 {[%clk 0:03:00.3]} 3... d6 {[%clk 0:03:01.2]}
4. Be3 {[%clk 0:02:59]} 4... Nf6 {[%clk 0:03:01.5]} 5. f3 {[%clk 0:02:59.1]}
5... a6 {[%clk 0:03:01.5]} 6. Qd2 {[%clk 0:02:59.5]} 6... b5 {[%clk 0:03:02]} 7.
O-O-O {[%clk 0:02:59.3]} 7... Nfd7 {[%clk 0:02:57.9]} 8. g4 {[%clk 0:02:57.3]}
8... b4 {[%clk 0:02:57.2]} 9. Nce2 {[%clk 0:02:57.1]} 9... a5 {[%clk 0:02:57.7]}
10. Kb1 {[%clk 0:02:57.3]} 10... Ba6 {[%clk 0:02:54.1]} 11. Nc1 {[%clk
0:02:54.9]} 11... Bxf1 {[%clk 0:02:53.8]} 12. Rxf1 {[%clk 0:02:55.8]} 12... Qc8
{[%clk 0:02:54.2]} 13. h4 {[%clk 0:02:54.7]} 13... Nb6 {[%clk 0:02:53.8]} 14. b3
{[%clk 0:02:46.6]} 14... Qa6 {[%clk 0:02:53.4]} 15. Nge2 {[%clk 0:02:42.6]}
15... a4 {[%clk 0:02:53.3]} 16. h5 {[%clk 0:02:36.1]} 16... axb3 {[%clk
0:02:53.4]} 17. cxb3 {[%clk 0:02:36]} 17... Nc6 {[%clk 0:02:41.1]} 18. h6 {[%clk
0:02:30.8]} 18... Bf8 {[%clk 0:02:41.3]} 19. f4 {[%clk 0:02:18]} 19... O-O-O
{[%clk 0:02:41]} 20. Nd3 {[%clk 0:02:03.4]} 20... e5 {[%clk 0:02:31.5]} 21. d5
{[%clk 0:01:57.6]} 21... exf4 {[%clk 0:02:20.2]} 22. Bxb6 {[%clk 0:01:53]} 22...
Qxb6 {[%clk 0:02:01]} 23. dxc6 {[%clk 0:01:52.8]} 23... d5 {[%clk 0:02:01.3]}
24. e5 {[%clk 0:01:46.5]} 24... g5 {[%clk 0:01:59.7]} 25. Qc2 {[%clk 0:01:13.5]}
25... f6 {[%clk 0:01:49.6]} 26. exf6 {[%clk 0:01:07.8]} 26... Rd6 {[%clk
0:01:49.7]} 27. Rc1 {[%clk 0:01:02.2]} 27... Rxf6 {[%clk 0:01:46.9]} 28. Ne5
{[%clk 0:00:57.6]} 28... Re6 {[%clk 0:01:32.6]} 29. Qf5 {[%clk 0:00:52.1]} 29...
Bd6 {[%clk 0:01:27.5]} 30. Qxe6+ {[%clk 0:00:49.9]} 30... Kb8 {[%clk 0:01:28.4]}
31. Nd7+ {[%clk 0:00:49.7]} 1-0

[Event "*** SCC Grand Prix: Titled Tuesday Blitz"]
[Site "Chess.com"]
[Date "2020.08.11"]
[Round "6"]
[White "harkerchess"]
[Black "c_r_e_e_p_e_r"]
[Result "1-0"]
[WhiteElo "2150"]
[BlackElo "2326"]
[TimeControl "180+1"]
[EndTime "11:04:54 PDT"]
[Termination "harkerchess won by checkmate"]

1. d4 {[%clk 0:03:00.9]} 1... d5 {[%clk 0:02:59.8]} 2. c4 {[%clk 0:02:57.8]}
2... e6 {[%clk 0:03:00.3]} 3. Nc3 {[%clk 0:02:56.8]} 3... Nf6 {[%clk 0:03:00.7]}
4. cxd5 {[%clk 0:02:54.3]} 4... exd5 {[%clk 0:03:01.6]} 5. Bg5 {[%clk
0:02:52.5]} 5... c6 {[%clk 0:03:01.9]} 6. e3 {[%clk 0:02:50.3]} 6... Be7 {[%clk
0:03:01.8]} 7. Bd3 {[%clk 0:02:48.7]} 7... O-O {[%clk 0:03:02.3]} 8. Nge2 {[%clk
0:02:47.7]} 8... Nbd7 {[%clk 0:03:02.9]} 9. O-O {[%clk 0:02:45.4]} 9... Re8
{[%clk 0:03:03.5]} 10. f3 {[%clk 0:02:41.3]} 10... Nf8 {[%clk 0:03:04]} 11. Qc2
{[%clk 0:02:40.4]} 11... g6 {[%clk 0:03:03.6]} 12. e4 {[%clk 0:02:38.1]} 12...
Ne6 {[%clk 0:03:03.3]} 13. Rac1 {[%clk 0:02:30.1]} 13... Nxg5 {[%clk 0:03:03.2]}
14. e5 {[%clk 0:02:27.8]} 14... Nd7 {[%clk 0:02:58.1]} 15. f4 {[%clk 0:02:27.8]}
15... Ne6 {[%clk 0:02:56.4]} 16. f5 {[%clk 0:02:27.7]} 16... Ng5 {[%clk
0:02:25.3]} 17. e6 {[%clk 0:02:22.2]} 17... Nf8 {[%clk 0:02:12.7]} 18. exf7+
{[%clk 0:02:21.7]} 18... Nxf7 {[%clk 0:02:10.7]} 19. fxg6 {[%clk 0:02:21.1]}
19... hxg6 {[%clk 0:02:05.9]} 20. Bxg6 {[%clk 0:02:22]} 20... Be6 {[%clk
0:02:03.5]} 21. Nf4 {[%clk 0:02:19.3]} 21... Bf6 {[%clk 0:01:43.6]} 22. Rce1
{[%clk 0:02:05.9]} 22... Bxd4+ {[%clk 0:01:41.5]} 23. Kh1 {[%clk 0:02:05.4]}
23... Bf6 {[%clk 0:01:08.3]} 24. Nh5 {[%clk 0:01:56.4]} 24... Bxc3 {[%clk
0:00:39.4]} 25. Qxc3 {[%clk 0:01:52.7]} 25... d4 {[%clk 0:00:39.3]} 26. Qg3
{[%clk 0:01:46]} 26... Qb8 {[%clk 0:00:20]} 27. Bxf7+ {[%clk 0:01:43.9]} 27...
Kh8 {[%clk 0:00:20.6]} 28. Qg7# {[%clk 0:01:43.5]} 1-0

[Event "*** SCC Grand Prix: Titled Tuesday Blitz"]
[Site "Chess.com"]
[Date "2020.08.11"]
[Round "6"]
[White "MikeSailer"]
[Black "warmoatmeal"]
[Result "0-1"]
[WhiteElo "2113"]
[BlackElo "2333"]
[TimeControl "180+1"]
[EndTime "11:04:59 PDT"]
[Termination "warmoatmeal won by resignation"]

1. d4 {[%clk 0:03:00.8]} 1... Nf6 {[%clk 0:02:57.3]} 2. Bf4 {[%clk 0:03:01.5]}
2... d5 {[%clk 0:02:56.3]} 3. Nf3 {[%clk 0:03:02.2]} 3... c5 {[%clk 0:02:56.6]}
4. e3 {[%clk 0:03:02.8]} 4... Nc6 {[%clk 0:02:57]} 5. Be2 {[%clk 0:03:03.1]}
5... Qb6 {[%clk 0:02:56.7]} 6. Nc3 {[%clk 0:03:01.6]} 6... a6 {[%clk 0:02:53.5]}
7. Rb1 {[%clk 0:03:02.1]} 7... Bg4 {[%clk 0:02:52.4]} 8. dxc5 {[%clk 0:02:45.7]}
8... Qxc5 {[%clk 0:02:51.9]} 9. O-O {[%clk 0:02:38.9]} 9... e6 {[%clk
0:02:51.8]} 10. Na4 {[%clk 0:02:27.5]} 10... Qb4 {[%clk 0:02:46.2]} 11. c3
{[%clk 0:02:25.5]} 11... Qa5 {[%clk 0:02:44.8]} 12. b4 {[%clk 0:02:25.3]} 12...
Qd8 {[%clk 0:02:44.3]} 13. Nc5 {[%clk 0:02:09.6]} 13... Ra7 {[%clk 0:02:29.6]}
14. Nd4 {[%clk 0:01:51.8]} 14... Bxe2 {[%clk 0:02:26.6]} 15. Qxe2 {[%clk
0:01:50.8]} 15... Be7 {[%clk 0:02:26.6]} 16. Nxc6 {[%clk 0:01:46.1]} 16... bxc6
{[%clk 0:02:27.5]} 17. Nxa6 {[%clk 0:01:41.9]} 17... O-O {[%clk 0:02:27.3]} 18.
a4 {[%clk 0:01:28.5]} 18... Qa8 {[%clk 0:02:25.2]} 19. b5 {[%clk 0:01:22.4]}
19... cxb5 {[%clk 0:02:13.3]} 20. axb5 {[%clk 0:01:21.8]} 20... Nd7 {[%clk
0:02:05.7]} 21. Nc7 {[%clk 0:00:59.4]} 21... Qc8 {[%clk 0:02:04.4]} 22. b6
{[%clk 0:00:55.9]} 22... Rb7 {[%clk 0:02:04]} 23. Qb5 {[%clk 0:00:32.9]} 23...
Rxb6 {[%clk 0:01:58.7]} 24. Qxb6 {[%clk 0:00:28.9]} 24... Nxb6 {[%clk
0:01:59.6]} 25. Rxb6 {[%clk 0:00:29.4]} 25... Bf6 {[%clk 0:01:48.7]} 26. Rb3
{[%clk 0:00:22.1]} 26... e5 {[%clk 0:01:48.2]} 27. Bg3 {[%clk 0:00:21.3]} 27...
Qxc7 {[%clk 0:01:48.3]} 28. Rfb1 {[%clk 0:00:20.8]} 28... h6 {[%clk 0:01:46.1]}
0-1